[Event "WYCC U14 Girls 2019"]
[Site "Mumbai"]
[Date "2019.10.07"]
[Round "7.10"]
[White "Renganayaki V"]
[Black "Lhotska, Anna"]
[Result "1/2-1/2"]
[ECO "E19"]
[WhiteElo "1641"]
[BlackElo "1897"]
[Annotator "NA"]
[PlyCount "105"]
[EventDate "2019.10.02"]
[EventType "swiss"]
[EventCountry "IND"]
[SourceTitle "playchess.com"]
[Source "ChessBase"]
[SourceQuality "1"]
[TimeControl "40/5400+30:1800+30"]

1. d4 {[%emt 0:00:00]} Nf6 {[%emt 0:00:00]} 2. c4 {[%emt 0:00:00]} e6 {[%emt 0:00:00]} 3. Nf3 {[%emt 0:00:00]} b6 {[%emt 0:00:00]} 4. g3 {[%emt 0:00:00]} Bb7 {[%emt 0:00:09]} 5. Bg2 {[%emt 0:00:00]} Be7 {[%emt 0:00:10]} 6. O-O {[%emt 0:00:01]} O-O {[%emt 0:00:09]} 7. Nc3 {[%emt 0:00:07]} Ne4 {[%emt 0:00:22]} 8. Qc2 {[%emt 0:01:58]} Nxc3 {[%emt 0:00:16]} 9. Qxc3 {[%emt 0:00:08]} c5 {[%emt 0:00:54]} 10. Qd3 {[%emt 0:01:50]} d6 {[%emt 0:05:03] E19: Queen's Indian: Old Main Line with 7...Ne4 8 Qc2 Nxc3 8 Qxc3} (10... Nc6 11. dxc5 bxc5 12. Rd1 d6 13. Bd2 a5 14. Bc3 Qb6 15. h4 h6 16. Qd2 e5 17. Nh2 f5 18. Nf1 f4 19. Qd3 Nd4 20. Bxb7 Qxb7 {0-1 (28) Iskandarov,M (2403)-Abasov,N (2516) Baku 2014}) 11. Ng5 {[%emt 0:01:55]} Bxg5 {[%emt 0:06:11]} 12. Bxg5 $2 $146 {[%emt 0:04:40]} ({Predecessor:} 12. Bxb7 $18 Bxc1 13. Raxc1 (13. Bxa8 Bxb2 {[%mdl 64] Double Attack} 14. Rab1 Bxd4 $14) 13... Nd7 14. Bxa8 Qxa8 15. dxc5 Nxc5 16. Qxd6 Qe4 17. b4 Na4 18. Qd7 Nb2 19. c5 Qxe2 20. c6 Qb5 21. Qd6 Nc4 22. Qd3 {1-0 (22) Andersson,T (2314)-Johansson,L (2279) Falun 2012}) 12... Qc7 {[%emt 0:02:21]} 13. d5 {[%emt 0:05:01]} e5 {[%emt 0:02:53]} 14. Be4 {[%emt 0:01:05]} h6 {[%emt 0:01:32]} 15. Bd2 {[%emt 0:00:41]} Nd7 {[%emt 0:07:01]} 16. f4 {[%emt 0:03:33]} (16. a4 $16) 16... a6 {[%emt 0:08:36]} 17. Bf5 {[%emt 0:11:12]} Rfe8 {[%emt 0:22:14]} 18. Bc3 {[%emt 0:03:58]} b5 {[%emt 0:03:11]} 19. b3 {[%emt 0:03:56]} Re7 {[%emt 0:04:53]} 20. Rf2 {[%emt 0:05:16]} Rae8 {[%emt 0:03:32]} 21. e4 {[%emt 0:02:06]} b4 {[%emt 0:05:09]} 22. Bb2 {[%emt 0:01:58]} a5 {[%emt 0:03:10]} 23. Raf1 {[%emt 0:02:52]} Qb8 {[%emt 0:06:53]} 24. Bxd7 {[%emt 0:02:26]} Rxd7 {[%emt 0:00:11]} 25. f5 {[%emt 0:00:14]} f6 {[%emt 0:00:59]} 26. h4 {[%emt 0:00:43]} Kf7 {[%emt 0:05:57]} 27. g4 {[%emt 0:02:08]} Ke7 {[%emt 0:02:04]} 28. Rg2 {[%emt 0:04:13]} Rdd8 {[%emt 0:04:40]} 29. Rf3 {[%emt 0:02:46]} Kd7 {[%emt 0:00:38]} 30. Rfg3 {[%emt 0:00:25]} Kc7 {[%emt 0:00:56]} 31. g5 {[%emt 0:01:31]} hxg5 {[%emt 0:00:22]} 32. hxg5 {[%emt 0:00:01]} Rd7 {[%emt 0:03:31]} 33. gxf6 {[%emt 0:02:06]} gxf6 {[%emt 0:00:06]} 34. Rg6 {[%emt 0:00:02]} Rf7 {[%emt 0:00:39]} 35. Qg3 {[%emt 0:01:00]} Qd8 {[%emt 0:00:54]} 36. Bc1 {[%emt 0:00:48]} Bc8 {[%emt 0:00:19]} 37. Bh6 {[%emt 0:00:40]} Rh8 {[%emt 0:01:16]} 38. Rg7 {[%emt 0:06:17]} Qe8 {[%emt 0:00:44]} 39. Qg6 {[%emt 0:02:36]} Rhf8 {[%emt 0:00:33]} 40. Qxf6 {[%emt 0:12:11]} Bd7 {[%emt 0:00:33]} 41. Qg6 {[%emt 0:39:32]} Rxg7 {[%emt 0:08:55]} 42. Qxg7 {[%emt 0:00:00]} Rf7 {[%emt 0:00:45]} 43. Qg6 {[%emt 0:00:00]} Qe7 {[%emt 0:02:06]} 44. Bg5 {[%emt 0:00:00]} Qf8 {[%emt 0:00:31]} 45. Bh6 $11 {[%emt 0:00:00]} (45. Kf1 $18) 45... Qe7 {[%emt 0:00:42]} 46. Bg5 {[%emt 0:00:00]} Qf8 {[%emt 0:00:31]} 47. f6 {[%emt 0:00:00]} Be8 {[%emt 0:03:03]} 48. Qf5 {[%emt 0:00:00]} Bd7 {[%emt 0:00:24]} 49. Qf2 {[%emt 0:00:00]} Qh8 {[%emt 0:01:16]} 50. Rh2 {[%emt 0:00:00]} Qg8 {[%emt 0:00:06]} 51. Rg2 {[%emt 0:00:00]} Qh7 {[%emt 0:00:19]} 52. Qh4 {[%emt 0:00:00]} Qg6 {[%emt 0:01:06]} 53. Qe1 1/2-1/2

[Event "WYCC U14 Girls 2019"]
[Site "Mumbai"]
[Date "2019.10.07"]
[Round "7.11"]
[White "Poliakova, Varvara"]
[Black "Bhagyashree Patil"]
[Result "1-0"]
[ECO "C97"]
[WhiteElo "2042"]
[BlackElo "1802"]
[Annotator "NA RC"]
[PlyCount "71"]
[EventDate "2019.10.02"]
[EventType "swiss"]
[EventCountry "IND"]
[SourceTitle "playchess.com"]
[Source "ChessBase"]
[SourceQuality "1"]
[TimeControl "40/5400+30:1800+30"]

1. e4 e5 2. Nf3 Nc6 3. Bb5 a6 4. Ba4 Nf6 5. O-O Be7 6. Re1 b5 7. Bb3 d6 8. c3 O-O 9. h3 Na5 10. Bc2 c5 11. d4 Qc7 12. d5 c4 13. b4 cxb3 {C97: Closed Ruy Lopez: Chigorin Defence: 11 d4 Qc7, sidelines} 14. axb3 Bd7 15. Ba3 Bd8 16. Nbd2 Qb8 17. Nf1 (17. b4 Nc4 18. Nxc4 bxc4 19. Ba4 Bb5 20. Bc1 h6 21. Nh4 Bxa4 22. Rxa4 Nxd5 23. exd5 Bxh4 {1-0 (53) Robson,R (2644)-Sevian,S (2615) Saint Louis 2017}) 17... Bb6 18. Ng3 $146 ({Predecessor:} 18. Ne3 Rc8 19. g4 Nb7 20. Bb2 {½-½ (43) Ljubas,A (2099)-Dumpor,A (2399) Omis 2007}) 18... g6 19. Qd2 Ne8 20. h4 f6 21. h5 Rf7 22. hxg6 hxg6 23. Nh4 Rg7 24. Qh6 Kf7 $18 (24... Rh7 $11 25. Qxg6+ Rg7) 25. Bd1 Nc7 26. Bxd6 Qg8 27. Qd2 Rh7 28. Nf3 Nb7 29. Ba3 a5 30. Be2 Qg7 31. d6 Ne6 32. Qd5 Rb8 33. Bxb5 Nbc5 34. Bxc5 Bxb5 35. Bxb6 Rxb6 36. Rxa5 1-0

[Event "WYCC U14 Girls 2019"]
[Site "Mumbai"]
[Date "2019.10.07"]
[Round "7.12"]
[White "Ray, Hiya"]
[Black "Omonova, Umida"]
[Result "0-1"]
[ECO "A52"]
[WhiteElo "1596"]
[BlackElo "2078"]
[Annotator "NA"]
[PlyCount "122"]
[EventDate "2019.10.02"]
[EventType "swiss"]
[EventCountry "IND"]
[SourceTitle "playchess.com"]
[Source "ChessBase"]
[SourceQuality "1"]
[TimeControl "40/5400+30:1800+30"]

1. d4 {[%emt 0:00:00]} Nf6 {[%emt 0:00:42]} 2. c4 {[%emt 0:00:00]} e5 {[%emt 0:02:30]} 3. dxe5 {[%emt 0:00:11]} Ng4 {[%emt 0:03:48]} 4. Bf4 {[%emt 0:00:19]} Nc6 {[%emt 0:00:26]} 5. Nf3 {[%emt 0:00:31]} Bb4+ {[%emt 0:00:23]} 6. Nbd2 {[%emt 0:01:10]} Qe7 {[%emt 0:00:10]} 7. e3 {[%emt 0:00:28]} Ngxe5 {[%emt 0:00:36]} 8. Nxe5 {[%emt 0:01:42]} Nxe5 {[%emt 0:00:43]} 9. Be2 {[%emt 0:00:24]} O-O {[%emt 0:00:39]} 10. O-O {[%emt 0:00:07]} Ng6 {[%emt 0:06:16]} 11. Bg3 {[%emt 0:02:34]} Bd6 {[%emt 0:01:10]} 12. Bxd6 {[%emt 0:04:43]} Qxd6 {[%emt 0:00:17]} 13. Nb3 {[%emt 0:00:12] A52: Budapest Gambit} Qe7 {[%emt 0:00:06]} 14. Nd4 $146 {[%emt 0:01:48]} ({Predecessor:} 14. c5 Rd8 15. Rc1 d6 16. c6 b6 17. Nd4 Rf8 18. Rc3 Nh4 19. f4 a5 20. Qd2 g6 {½-½ (58) Belakovskaia,A (2315)-Blatny,P (2515) New York 1996}) 14... d6 {[%emt 0:01:15]} 15. Bg4 {[%emt 0:00:35]} Ne5 {[%emt 0:01:51]} 16. Bxc8 {[%emt 0:01:04]} Raxc8 {[%emt 0:00:19]} 17. Qe2 {[%emt 0:00:24]} f5 {[%emt 0:01:52]} 18. Nf3 {[%emt 0:02:30]} Ng6 {[%emt 0:01:01]} 19. Qd2 {[%emt 0:01:51]} Kh8 {[%emt 0:01:22]} 20. Rfe1 {[%emt 0:02:00]} Rce8 {[%emt 0:02:38]} 21. Qd4 {[%emt 0:00:53]} b6 {[%emt 0:00:47]} 22. Rad1 {[%emt 0:01:05]} a5 {[%emt 0:03:09]} 23. a3 {[%emt 0:01:45]} Rf6 {[%emt 0:03:15]} 24. b4 {[%emt 0:05:28]} axb4 {[%emt 0:00:43]} 25. axb4 {[%emt 0:00:04]} Re6 {[%emt 0:03:44]} 26. Qc3 {[%emt 0:00:46]} h6 {[%emt 0:16:27]} 27. Nd4 {[%emt 0:01:54]} Rf6 {[%emt 0:00:25]} 28. Rc1 {[%emt 0:06:10]} Ne5 $11 {[%emt 0:02:54]} 29. c5 {[%emt 0:00:47]} bxc5 {[%emt 0:00:23]} 30. bxc5 {[%emt 0:00:08]} dxc5 {[%emt 0:00:13]} 31. Qxc5 {[%emt 0:00:19]} Qxc5 {[%emt 0:00:05]} 32. Rxc5 {[%emt 0:00:09]} Nd3 {[%emt 0:00:08]} 33. Rec1 {[%emt 0:00:22]} Nxc5 {[%emt 0:00:46]} 34. Rxc5 {[%emt 0:00:05]} f4 {[%emt 0:00:09]} 35. Rxc7 {[%emt 0:01:29]} fxe3 {[%emt 0:00:05]} 36. fxe3 {[%emt 0:00:08]} Rxe3 {[%emt 0:00:14]} 37. h3 {[%emt 0:00:25]} Rg6 {[%emt 0:00:59]} 38. Kh2 {[%emt 0:00:29]} Re4 {[%emt 0:00:43]} 39. Nf5 {[%emt 0:01:21]} Re2 {[%emt 0:00:26]} 40. Nh4 {[%emt 0:00:21]} Rg5 {[%emt 0:00:10]} 41. Rc8+ {[%emt 0:30:29]} Kh7 {[%emt 0:30:17]} 42. Rc7 {[%emt 0:00:28]} Re4 {[%emt 0:00:37]} 43. Nf3 {[%emt 0:00:15]} Rd5 {[%emt 0:00:13]} 44. Rc2 {[%emt 0:00:49]} Rd6 {[%emt 0:00:12]} 45. Kg3 {[%emt 0:00:23]} g5 {[%emt 0:00:51]} 46. Rc5 {[%emt 0:01:22]} Rg6 {[%emt 0:01:24]} 47. Ne5 {[%emt 0:00:53]} Rg7 {[%emt 0:00:40]} 48. Ng4 {[%emt 0:00:12]} Re6 {[%emt 0:00:09]} 49. Ne5 {[%emt 0:03:24]} h5 {[%emt 0:01:36]} 50. Nf3 {[%emt 0:00:06]} Kh6 {[%emt 0:00:18]} 51. Rc8 {[%emt 0:00:25]} h4+ {[%emt 0:06:23]} 52. Kh2 {[%emt 0:01:00]} Re2 {[%emt 0:02:00]} 53. Nd4 {[%emt 0:00:36]} Rf2 {[%emt 0:01:06]} 54. Ne6 {[%emt 0:01:00]} Re7 {[%emt 0:00:45]} 55. Rh8+ {[%emt 0:00:32]} Kg6 {[%emt 0:00:10]} 56. Nd4 {[%emt 0:00:44]} Re4 {[%emt 0:00:45]} 57. Nf3 {[%emt 0:00:04]} Ree2 {[%emt 0:00:32]} 58. Nd4 {[%emt 0:04:10]} Rxg2+ {[%emt 0:00:24]} 59. Kh1 {[%emt 0:00:03]} Rh2+ {[%emt 0:00:07]} 60. Kg1 {[%emt 0:00:13]} Reg2+ {[%emt 0:00:01]} 61. Kf1 {[%emt 0:00:29]} Rb2 {[%emt 0:00:06]} 0-1

[Event "WYCC U14 Girls 2019"]
[Site "Mumbai"]
[Date "2019.10.09"]
[Round "8.1"]
[White "Rakshitta Ravi"]
[Black "Nasyrova, Ekaterina"]
[Result "1/2-1/2"]
[ECO "C67"]
[WhiteElo "2310"]
[BlackElo "2137"]
[Annotator "ChessBase"]
[PlyCount "59"]
[EventDate "2019.10.02"]
[EventType "swiss"]
[EventCountry "IND"]
[SourceTitle "playchess.com"]
[Source "ChessBase"]
[SourceQuality "1"]
[TimeControl "40/5400+30:1800+30"]

1. e4 {[%emt 0:00:06]} e5 {[%emt 0:00:00]} 2. Nf3 {[%emt 0:00:05]} Nc6 {[%emt 0:00:00]} 3. Bb5 {[%emt 0:00:16]} Nf6 {[%emt 0:00:00]} 4. O-O {[%emt 0:00:22]} Nxe4 {[%emt 0:00:04]} 5. d4 {[%emt 0:00:13]} Nd6 {[%emt 0:00:07]} 6. dxe5 {[%emt 0:00:10]} Nxb5 {[%emt 0:00:06]} 7. a4 {[%emt 0:00:05]} d6 {[%emt 0:00:08]} 8. e6 {[%emt 0:00:22]} Bxe6 {[%emt 0:00:19]} 9. axb5 {[%emt 0:00:06]} Ne5 {[%emt 0:00:13]} 10. Nd4 {[%emt 0:00:25]} Be7 {[%emt 0:02:21]} 11. f4 {[%emt 0:00:15]} Nc4 {[%emt 0:10:50]} 12. Nc3 {[%emt 0:05:06]} Nb6 {[%emt 0:08:48]} 13. Nxe6 {[%emt 0:06:40]} fxe6 {[%emt 0:00:39]} 14. Qg4 {[%emt 0:01:02]} Qd7 {[%emt 0:21:44]} 15. Qxg7 {[%emt 0:07:59]} O-O-O {[%emt 0:00:29]} 16. Rxa7 {[%emt 0:01:29]} Kb8 {[%emt 0:05:03]} 17. Ra2 {[%emt 0:05:53]} d5 {[%emt 0:02:56]} 18. Qd4 {[%emt 0:07:26]} Rhf8 {[%emt 0:02:51]} 19. Be3 {[%emt 0:17:20]} Bf6 {[%emt 0:20:06]} 20. Qb4 {[%emt 0:01:06]} Qg7 {[%emt 0:02:36]} 21. Rfa1 {[%emt 0:18:29]} Rg8 {[%emt 0:04:52]} 22. g3 {[%emt 0:00:45]} Kc8 {[%emt 0:04:16]} 23. Ra7 {[%emt 0:13:33]} d4 {[%emt 0:06:28]} 24. Ne4 {[%emt 0:05:19]} Be7 {[%emt 0:00:15]} 25. Qb3 {[%emt 0:00:18]} dxe3 {[%emt 0:05:42]} 26. Qxe6+ {[%emt 0:02:11]} Kb8 {[%emt 0:00:05]} 27. Qa2 {[%emt 0:00:50]} Kc8 {[%emt 0:00:33]} 28. Qe6+ {[%emt 0:01:54]} Kb8 {[%emt 0:00:05]} 29. Qa2 {[%emt 0:01:17]} Kc8 {[%emt 0:00:06]} 30. Qe6+ {[%emt 0:00:42]} 1/2-1/2

[Event "WYCC U14 Girls 2019"]
[Site "Mumbai"]
[Date "2019.10.09"]
[Round "8.2"]
[White "Hakobyan, Astghik"]
[Black "Roebers, Eline"]
[Result "1/2-1/2"]
[ECO "B48"]
[WhiteElo "1978"]
[BlackElo "2083"]
[Annotator "NA"]
[PlyCount "69"]
[EventDate "2019.10.02"]
[EventType "swiss"]
[EventCountry "IND"]
[SourceTitle "playchess.com"]
[Source "ChessBase"]
[SourceQuality "1"]
[TimeControl "40/5400+30:1800+30"]

1. e4 {[%emt 0:00:00]} c5 {[%emt 0:00:00]} 2. Nf3 {[%emt 0:00:00]} e6 {[%emt 0:00:00]} 3. d4 {[%emt 0:00:00]} cxd4 {[%emt 0:00:00]} 4. Nxd4 {[%emt 0:00:00]} Nc6 {[%emt 0:00:00]} 5. Nc3 {[%emt 0:00:21]} Qc7 {[%emt 0:00:00]} 6. Be3 {[%emt 0:00:11]} a6 {[%emt 0:00:06]} ({Predecessor:} 6... Nf6 7. Qd2 {0-1 (46) Mischuk,D (2361)-Simantsev,M (2465) Cheliabinsk 2016}) 7. Qd2 {[%emt 0:00:10]} Nf6 {[%emt 0:00:29]} 8. O-O-O {[%emt 0:00:11]} Be7 {[%emt 0:00:29] B48: Sicilian: Taimanov: 5 Nc3 Qc7 6 Be3 a6 without Be2} 9. f3 {[%emt 0:00:44]} b5 {[%emt 0:00:25]} 10. g4 {[%emt 0:02:49]} Nxd4 {[%emt 0:00:31]} 11. Bxd4 {[%emt 0:00:34]} Bb7 {[%emt 0:00:07]} 12. g5 $146 {[%emt 0:00:34]} (12. Kb1 O-O 13. Rg1 Rac8 14. h4 Rfd8 15. Bh3 Ne8 16. g5 {½-½ (30) Dominguez Perez,L (2739)-Shankland,S (2731) Saint Louis 2019}) 12... Nh5 {[%emt 0:00:07]} 13. Be5 {[%emt 0:00:52]} Qxe5 {[%emt 0:00:17]} 14. Qxd7+ {[%emt 0:00:02]} Kf8 {[%emt 0:00:06]} 15. Qxb7 {[%emt 0:00:09]} Qb8 {[%emt 0:00:22]} 16. Rd7 {[%emt 0:07:44]} Qxb7 {[%emt 0:00:05]} 17. Rxb7 {[%emt 0:00:03]} h6 {[%emt 0:02:01]} 18. a4 {[%emt 0:06:24]} hxg5 {[%emt 0:18:03]} 19. axb5 {[%emt 0:16:00]} axb5 {[%emt 0:11:46]} 20. Bxb5 {[%emt 0:11:26]} Bd6 {[%emt 0:45:37]} 21. Kb1 {[%emt 0:03:34]} Rb8 {[%emt 0:03:10]} 22. Rd7 $19 {[%emt 0:12:54]} (22. Rxb8+ $14 {keeps the upper hand.} Bxb8 23. h4) 22... Be5 {[%emt 0:01:29]} 23. Rhd1 {[%emt 0:03:49]} Nf6 {[%emt 0:03:06]} 24. Rd8+ {[%emt 0:02:21]} Ke7 {[%emt 0:00:05]} 25. Rxh8 {[%emt 0:00:58]} Rxh8 {[%emt 0:00:04]} 26. Na4 {[%emt 0:06:07]} Bxh2 {[%emt 0:03:30]} 27. c4 {[%emt 0:03:56]} Rd8 {[%emt 0:04:23]} 28. Rxd8 {[%emt 0:02:38]} Kxd8 {[%emt 0:00:04]} 29. c5 {[%emt 0:02:09]} g4 {[%emt 0:02:00]} 30. fxg4 {[%emt 0:00:10]} Nxe4 {[%emt 0:03:06]} 31. b4 {[%emt 0:01:53]} Bg3 {[%emt 0:02:57]} 32. Bc6 {[%emt 0:01:48]} f5 {[%emt 0:00:37]} 33. gxf5 {[%emt 0:01:26]} exf5 {[%emt 0:00:05]} 34. Bxe4 {[%emt 0:01:56]} fxe4 {[%emt 0:00:04]} 35. Nc3 {[%emt 0:00:13]} 1/2-1/2

[Event "WYCC U14 Girls 2019"]
[Site "Mumbai"]
[Date "2019.10.09"]
[Round "8.3"]
[White "Velpula Sarayu"]
[Black "Divya Deshmukh"]
[Result "1-0"]
[ECO "A48"]
[WhiteElo "1717"]
[BlackElo "2358"]
[Annotator "ChessBase"]
[PlyCount "119"]
[EventDate "2019.10.02"]
[EventType "swiss"]
[EventCountry "IND"]
[SourceTitle "playchess.com"]
[Source "ChessBase"]
[SourceQuality "1"]
[TimeControl "40/5400+30:1800+30"]

1. d4 {[%emt 0:00:00]} Nf6 {[%emt 0:00:00]} 2. Nf3 {[%emt 0:00:35]} g6 {[%emt 0:00:00]} 3. Bf4 {[%emt 0:00:42]} Bg7 {[%emt 0:00:00]} 4. c3 {[%emt 0:01:16]} b6 {[%emt 0:00:00]} 5. e3 {[%emt 0:01:57]} d6 {[%emt 0:00:11]} 6. h3 {[%emt 0:01:13]} Bb7 {[%emt 0:00:17]} 7. Nbd2 {[%emt 0:01:10]} Nbd7 {[%emt 0:00:07]} 8. Bc4 {[%emt 0:02:19]} O-O {[%emt 0:00:29]} 9. O-O {[%emt 0:00:54]} c5 {[%emt 0:00:12]} 10. Bh2 {[%emt 0:04:51]} Qe8 {[%emt 0:19:21]} 11. Qe2 {[%emt 0:10:23]} e5 {[%emt 0:20:52]} 12. dxe5 {[%emt 0:07:49]} Nxe5 {[%emt 0:11:17]} 13. Nxe5 {[%emt 0:03:10]} dxe5 {[%emt 0:00:05]} 14. Bb5 {[%emt 0:01:38]} Qe7 {[%emt 0:01:31]} 15. Ba6 {[%emt 0:00:32]} Bc6 {[%emt 0:06:18]} 16. Bb5 {[%emt 0:04:20]} Bb7 {[%emt 0:02:13]} 17. Ba6 {[%emt 0:01:13]} Bxa6 {[%emt 0:00:20]} 18. Qxa6 {[%emt 0:00:08]} Nh5 {[%emt 0:00:25]} 19. a4 {[%emt 0:07:46]} Rab8 {[%emt 0:01:38]} 20. Rad1 {[%emt 0:02:10]} f5 {[%emt 0:02:00]} 21. Rfe1 {[%emt 0:01:28]} g5 {[%emt 0:05:23]} 22. Qe2 {[%emt 0:03:53]} Nf6 {[%emt 0:06:38]} 23. Nc4 {[%emt 0:00:09]} Ne8 {[%emt 0:01:27]} 24. Qd3 {[%emt 0:03:45]} Rf7 {[%emt 0:01:27]} 25. Qd5 {[%emt 0:03:28]} Nc7 {[%emt 0:01:19]} 26. Qc6 {[%emt 0:04:44]} g4 {[%emt 0:14:32]} 27. hxg4 {[%emt 0:05:33]} fxg4 {[%emt 0:00:01]} 28. Qe4 {[%emt 0:00:22]} h5 {[%emt 0:04:32]} 29. Rd2 {[%emt 0:08:13]} Qe6 {[%emt 0:01:21]} 30. Rd6 Qf5 {[%emt 0:00:29]} 31. Qxf5 {[%emt 0:04:02]} Rxf5 {[%emt 0:00:01]} 32. Rd7 {[%emt 0:00:15]} Ne8 {[%emt 0:00:51]} 33. Rxa7 {[%emt 0:01:00]} Bf6 {[%emt 0:00:31]} 34. Ra6 {[%emt 0:01:41]} Bh4 {[%emt 0:00:05]} 35. Re2 {[%emt 0:00:25]} Rd8 {[%emt 0:00:21]} 36. g3 {[%emt 0:04:39]} Rd1+ {[%emt 0:00:36]} 37. Kg2 {[%emt 0:00:06]} Bd8 {[%emt 0:00:00]} 38. e4 {[%emt 0:01:52]} Rg5 {[%emt 0:01:25]} 39. Rd2 {[%emt 0:02:59]} Rxd2 {[%emt 0:00:11]} 40. Nxd2 {[%emt 0:00:02]} Rg7 {[%emt 0:01:03]} 41. Ra8 {[%emt 0:30:22]} Rd7 {[%emt 0:02:55]} 42. Nc4 {[%emt 0:00:00]} Nc7 {[%emt 0:00:45]} 43. Rc8 {[%emt 0:00:00]} Ne6 {[%emt 0:02:53]} 44. Nxb6 {[%emt 0:00:00]} Rd1 {[%emt 0:01:09]} 45. Nc4 {[%emt 0:00:00]} Kg7 {[%emt 0:01:13]} 46. Nxe5 {[%emt 0:00:00]} Ng5 {[%emt 0:02:05]} 47. Nc6 {[%emt 0:00:00]} Bb6 {[%emt 0:01:29]} 48. Ne5 {[%emt 0:00:00]} Nxe4 {[%emt 0:00:51]} 49. Nc4 {[%emt 0:00:00]} Bd8 {[%emt 0:08:01]} 50. a5 {[%emt 0:00:00]} Bxa5 {[%emt 0:04:42]} 51. Nxa5 {[%emt 0:00:00]} Ng5 {[%emt 0:00:03]} 52. Rxc5 {[%emt 0:00:00]} Nf3 {[%emt 0:00:06]} 53. Rxh5 {[%emt 0:00:00]} Kg6 {[%emt 0:00:03]} 54. Rh8 {[%emt 0:00:00]} Kg7 {[%emt 0:00:07]} 55. Rh4 {[%emt 0:00:00]} Ne1+ {[%emt 0:01:33]} 56. Kf1 {[%emt 0:00:14]} Nf3+ {[%emt 0:00:21]} 57. Ke2 {[%emt 0:00:12]} Re1+ {[%emt 0:00:02]} 58. Kd3 {[%emt 0:00:06]} Ne5+ {[%emt 0:00:27]} 59. Kc2 {[%emt 0:00:54]} Re2+ {[%emt 0:00:03]} 60. Kb3 {[%emt 0:00:05]} 1-0

[Event "WYCC U14 Girls 2019"]
[Site "Mumbai"]
[Date "2019.10.09"]
[Round "8.4"]
[White "Allahverdiyeva, Ayan"]
[Black "Ghomi, Parnian"]
[Result "1-0"]
[ECO "C05"]
[WhiteElo "2160"]
[BlackElo "1948"]
[Annotator "ChessBase"]
[PlyCount "79"]
[EventDate "2019.10.02"]
[EventType "swiss"]
[EventCountry "IND"]
[SourceTitle "playchess.com"]
[Source "ChessBase"]
[SourceQuality "1"]
[TimeControl "40/5400+30:1800+30"]

1. e4 {[%emt 0:01:08]} e6 {[%emt 0:00:00]} 2. d4 {[%emt 0:00:06]} d5 {[%emt 0:00:00]} 3. Nd2 {[%emt 0:00:05]} Nf6 {[%emt 0:00:00]} 4. Bd3 {[%emt 0:00:38]} c5 {[%emt 0:00:13]} 5. c3 {[%emt 0:00:21]} cxd4 {[%emt 0:03:10]} 6. cxd4 {[%emt 0:03:47]} dxe4 {[%emt 0:00:17]} 7. Nxe4 {[%emt 0:00:20]} Nxe4 {[%emt 0:01:12]} 8. Bxe4 {[%emt 0:00:09]} Bb4+ {[%emt 0:00:05]} 9. Bd2 {[%emt 0:00:19]} Bxd2+ {[%emt 0:00:25]} 10. Qxd2 {[%emt 0:00:05]} O-O {[%emt 0:00:08]} 11. Ne2 {[%emt 0:03:48]} Nd7 {[%emt 0:03:55]} 12. O-O {[%emt 0:01:03]} Nf6 {[%emt 0:00:43]} 13. Bf3 {[%emt 0:00:18]} Qb6 {[%emt 0:09:41]} 14. Rac1 {[%emt 0:00:39]} Rd8 {[%emt 0:04:11]} 15. Rc4 {[%emt 0:19:24]} Rb8 {[%emt 0:12:08]} 16. Qc3 {[%emt 0:08:22]} Bd7 {[%emt 0:10:51]} 17. Rc1 {[%emt 0:01:51]} Bb5 {[%emt 0:01:22]} 18. Rb4 {[%emt 0:02:56]} a5 {[%emt 0:00:43]} 19. Rb3 {[%emt 0:00:13]} Qa6 {[%emt 0:00:08]} 20. Qc7 {[%emt 0:01:14]} b6 {[%emt 0:20:17]} 21. Qe5 {[%emt 0:00:59]} Bc4 {[%emt 0:02:50]} 22. Rbc3 {[%emt 0:00:04]} Bd5 {[%emt 0:00:52]} 23. Rb3 {[%emt 0:00:27]} Bc4 {[%emt 0:00:08]} 24. Rbc3 {[%emt 0:00:33]} Bd5 25. Nf4 {[%emt 0:05:00]} Bxf3 {[%emt 0:01:29]} 26. Rxf3 {[%emt 0:00:03]} Rbc8 {[%emt 0:04:22]} 27. Re1 {[%emt 0:02:06]} Qc4 28. Rc3 {[%emt 0:02:29]} Qa6 {[%emt 0:13:52]} 29. Rg3 {[%emt 0:00:54]} Kh8 {[%emt 0:02:53]} 30. Rxg7 {[%emt 0:05:46]} Kxg7 {[%emt 0:00:27]} 31. Qg5+ {[%emt 0:01:54]} Kf8 {[%emt 0:01:07]} 32. Qxf6 {[%emt 0:00:10]} Rd6 {[%emt 0:05:55]} 33. d5 {[%emt 0:00:22]} Kg8 {[%emt 0:02:05]} 34. Qg5+ {[%emt 0:03:49]} Kf8 {[%emt 0:00:33]} 35. dxe6 {[%emt 0:00:27]} fxe6 {[%emt 0:00:35]} 36. Nxe6+ {[%emt 0:00:10]} Rxe6 {[%emt 0:00:28]} 37. Rxe6 {[%emt 0:00:12]} Qd3 {[%emt 0:00:52]} 38. Rf6+ {[%emt 0:00:14]} Ke8 {[%emt 0:00:07]} 39. Qg8+ {[%emt 0:00:06]} Kd7 {[%emt 0:00:37]} 40. Qg7+ {[%emt 0:00:03]} 1-0

[Event "WYCC U14 Girls 2019"]
[Site "Mumbai"]
[Date "2019.10.09"]
[Round "8.5"]
[White "Mungunzul, Bat-Erdene"]
[Black "Dhyana Patel"]
[Result "1-0"]
[ECO "D86"]
[WhiteElo "1912"]
[BlackElo "1995"]
[Annotator "NA"]
[PlyCount "111"]
[EventDate "2019.10.02"]
[EventType "swiss"]
[EventCountry "IND"]
[SourceTitle "playchess.com"]
[Source "ChessBase"]
[SourceQuality "1"]
[TimeControl "40/5400+30:1800+30"]

1. d4 Nf6 2. c4 g6 3. Nc3 d5 4. cxd5 Nxd5 5. e4 Nxc3 6. bxc3 Bg7 7. Bc4 c5 8. Be3 Nc6 9. Ne2 O-O 10. O-O Bg4 11. f3 Bd7 12. Rb1 Qc7 13. Qd2 {D87: Exchange Grünfeld: Classical Line: Variations without ...cxd4} (13. h4 cxd4 14. cxd4 Nxd4 15. Bxf7+ Rxf7 16. Nxd4 Rd8 17. Qb3 Qg3 18. Ne2 Qxh4 19. Bf2 Qf6 20. Rfd1 b6 {½-½ (119) Karjakin,S (2773)-Vachier Lagrave,M (2779) Saint Louis 2018}) 13... Rad8 14. Rfc1 Bc8 15. Bh6 e5 $146 ({Predecessor:} 15... Na5 16. Bb3 e5 17. Bxg7 Kxg7 18. f4 Bg4 19. fxe5 Bxe2 20. Qxe2 cxd4 21. cxd4 {½-½ (32) Naumkin,I (2383)-Doshi,M (2203) Balatonlelle 2018}) 16. d5 Na5 17. Bxg7 Kxg7 18. Bd3 b6 19. Rf1 c4 20. Bc2 f5 21. Rbd1 fxe4 22. Bxe4 Nb7 23. Ng3 Nd6 24. Rfe1 $11 Nf7 25. Qe3 Bd7 26. Qd2 Bc8 27. Qe3 Rd6 28. Rd2 Rfd8 29. Red1 Bb7 30. Ne2 Qe7 31. f4 Kg8 32. fxe5 Qxe5 33. Qd4 Re8 34. Qxe5 Rxe5 35. Rd4 Ng5 36. Ng3 b5 37. h4 Nf7 38. Kf2 Nh6 39. Bf3 Nf5 40. Re4 Rxe4 41. Nxe4 Rd8 42. g3 Nd6 43. Nxd6 Rxd6 44. Ke3 Kf7 45. Kd4 Rf6 46. Bg4 Ke7 47. Kc5 a6 48. Re1+ Kd8 49. d6 h5 50. Bh3 b4 51. Re7 Bf3 52. Rd7+ Ke8 53. Kxb4 Bg4 54. Bxg4 hxg4 55. Re7+ Kd8 56. Kc5 1-0